{"text_format":"1","workbook":"xlsx","n_sheets":11,"sheets":["Introduction and instructions","answers","MainMenu","Overview","Infrastructure","Breeding Support","Pre-Breeding Research","Strategic Planning","Budget Mngmt","Performance Mngmt","Sheet 2"],"not_rendered":{"charts":0,"images":2,"macros":1,"external_links":0,"defined_names":9,"comments":0,"pivot_tables":0},"unopened":[],"bounds":{"document_bytes":16777216,"sheet_cells":100000,"rows_first":2000,"rows_last":500,"rows_between":2000,"halvings":0,"cell_chars":16384,"cell_head_chars":4096},"cells_cut":0,"cells_raw":0,"read":"whole","date_system":"1900"}

{"sheet":"Introduction and instructions","index":0,"n_rows":15,"n_cols":1,"rows_kept":15,"cut":false,"hidden":false,"merged":[]}
[]
[]
[]
[]
["Institution Questionnaire Introduction and Instructions"]
[]
[]
["About the Plant Breeding Institution Questionnaire"]
["The Breeding Institution Questionnaire is a component of Plant Breeding Program Assessment process to support organizations who are committed to continually improving the rate of genetic gain of their newly released varieties. The process  is based on the key elements that drive a public sector breeding program's potential to achieve higher rates of genetic gain, including:"]
["      -Breeding-specific execution and quantitative & qualitative impact factors"]
["      -Enabler support factors or strategic planning, budgeting, and performance management"]
["The questionnaire will help prepare the assessment team for the visit to the assessment and the results will allow for more targeted in-person interviews during the visit."]
[]
["Instructions for completing the Questionnaire"]
["The questionnaire is to be completed by management (e.g., Director Research or Head of Breeding Division) and potentially 1-2 other individuals for further perspective. It includes questions on breeding support systems, infrastructure, pre-breeding research, strategic planning and management, budget management, and performance management.  Some questions ask you to supply supporting information (e.g. strategic plans) as an attachment. Some of the detailed information requested here is intentionally gathered ahead of time because it would not be conducive to gather during conversation. It is very important for the assessment team to have complete information prior to the on-site visit, as this helps the team prepare and use your time efficiently. Please note that all information provided is confidential within the assessment team and sponsoring agencies and will not be used beyond the BPAT program."]

{"sheet":"answers","index":1,"n_rows":186,"n_cols":16,"rows_kept":186,"cut":false,"hidden":true,"merged":[]}
["Section","section_no","section_id","Topic","section_factor","Question numbers","question_id","Qno","parentquestion","question text","question_response1","question_response2","question_response3","question_response4","question_response5","question_response6"]
["Breeding Programs Overview",1,70,"Breeding Programs Overview",1,"1.1   to   1.2",353,"1.1","0","How many distinct breeding programs does the institution operate?",{"$f":"Overview!E11","v":0}]
["Breeding Programs Overview",1,70,"Breeding Programs Overview",1,null,354,"1.2","-1","Name the individual crop or focus programs and each's \"Home\" location"]
["Breeding Programs Overview",1,70,"Breeding Programs Overview",1,null,355,"1.2.1","2","Program",{"$f":"Overview!F13","v":0},{"$f":"Overview!F14","v":0},{"$f":"Overview!F15","v":0},{"$f":"Overview!F16","v":0},{"$f":"Overview!F17","v":0},{"$f":"Overview!F18","v":0}]
["Breeding Programs Overview",1,70,"Breeding Programs Overview",1,null,356,"1.2.2",2,"Crop",{"$f":"Overview!E13","v":0},{"$f":"Overview!E14","v":0},{"$f":"Overview!E15","v":0},{"$f":"Overview!E16","v":0},{"$f":"Overview!E17","v":0},{"$f":"Overview!E18","v":0}]
["Infrastructure",2,71,"Field Operations",1,"1.1   to   1.5",357,1.1000000000000001,0,"How many locations does the Institution operate for this crop?",{"$f":"Infrastructure!E7","v":0}]
["Infrastructure",2,71,"Field Operations",1,null,358,"1.2",0,"Across the columns, name all locations for this crop where breeding activities take place. Please note \"breeding\" means developing own germplasm, not screening third party material.",{"$f":"Infrastructure!E8","v":"Insert location name here"},{"$f":"Infrastructure!F8","v":"Insert location name here"},{"$f":"Infrastructure!G8","v":"Insert location name here"},{"$f":"Infrastructure!H8","v":"Insert location name here"},{"$f":"Infrastructure!I8","v":"Insert location name here"},{"$f":"Infrastructure!J8","v":"Insert location name here"}]
["Infrastructure",2,71,"Field Operations",1,null,359,"1.3",0,"Are yield trials conducted at this location?",{"$f":"Infrastructure!E9","v":0},{"$f":"Infrastructure!F9","v":0},{"$f":"Infrastructure!G9","v":0},{"$f":"Infrastructure!H9","v":0},{"$f":"Infrastructure!I9","v":0},{"$f":"Infrastructure!J9","v":0}]
["Infrastructure",2,71,"Field Operations",1,null,360,"1.4",-1,"At each location, how many hectares are used for:"]
["Infrastructure",2,71,"Field Operations",1,null,361,"1.4.1",8,"Breeding nurseries, including biotic and abiotic screening?",{"$f":"Infrastructure!E11","v":0},{"$f":"Infrastructure!F11","v":0},{"$f":"Infrastructure!G11","v":0},{"$f":"Infrastructure!H11","v":0},{"$f":"Infrastructure!I11","v":0},{"$f":"Infrastructure!J11","v":0}]
["Infrastructure",2,71,"Field Operations",1,null,362,"1.4.2",8,"Yield trials?",{"$f":"Infrastructure!E12","v":0},{"$f":"Infrastructure!F12","v":0},{"$f":"Infrastructure!G12","v":0},{"$f":"Infrastructure!H12","v":0},{"$f":"Infrastructure!I12","v":0},{"$f":"Infrastructure!J12","v":0}]
["Infrastructure",2,71,"Field Operations",1,null,363,"1.4.3",8,"Seed production?",{"$f":"Infrastructure!E13","v":0},{"$f":"Infrastructure!F13","v":0},{"$f":"Infrastructure!G13","v":0},{"$f":"Infrastructure!H13","v":0},{"$f":"Infrastructure!I13","v":0},{"$f":"Infrastructure!J13","v":0}]
["Infrastructure",2,71,"Field Operations",1,null,364,"1.4.4",8,"At each location, is permanent irrigation available for:"]
["Infrastructure",2,71,"Field Operations",1,null,365,"1.4.5",8,"Breeding nurseries, including biotic and abiotic screening?",{"$f":"Infrastructure!E15","v":0},{"$f":"Infrastructure!F15","v":0},{"$f":"Infrastructure!G15","v":0},{"$f":"Infrastructure!H15","v":0},{"$f":"Infrastructure!I15","v":0},{"$f":"Infrastructure!J15","v":0}]
["Infrastructure",2,71,"Field Operations",1,null,366,"1.4.6",8,"Yield trials?",{"$f":"Infrastructure!E16","v":0},{"$f":"Infrastructure!F16","v":0},{"$f":"Infrastructure!G16","v":0},{"$f":"Infrastructure!H16","v":0},{"$f":"Infrastructure!I16","v":0},{"$f":"Infrastructure!J16","v":0}]
["Infrastructure",2,71,"Field Operations",1,null,367,"1.4.7",8,"Seed production?",{"$f":"Infrastructure!E17","v":0},{"$f":"Infrastructure!F17","v":0},{"$f":"Infrastructure!G17","v":0},{"$f":"Infrastructure!H17","v":0},{"$f":"Infrastructure!I17","v":0},{"$f":"Infrastructure!J17","v":0}]
["Infrastructure",2,72,"Facilities",2,"2.1   to   2.8",368,2.1,0,"Are glasshouse facilities available?",{"$f":"Infrastructure!E21","v":0},{"$f":"Infrastructure!F21","v":0},{"$f":"Infrastructure!G21","v":0},{"$f":"Infrastructure!H21","v":0},{"$f":"Infrastructure!I21","v":0},{"$f":"Infrastructure!J21","v":0}]
["Infrastructure",2,72,"Facilities",2,null,369,2.2000000000000002,0,"What is the total area (m2) of glasshouse?",{"$f":"Infrastructure!E22","v":0},{"$f":"Infrastructure!F22","v":0},{"$f":"Infrastructure!G22","v":0},{"$f":"Infrastructure!H22","v":0},{"$f":"Infrastructure!I22","v":0},{"$f":"Infrastructure!J22","v":0}]
["Infrastructure",2,72,"Facilities",2,null,370,2.2999999999999998,0,"What proportion is used by breeding programs?",{"$f":"Infrastructure!E23","v":0},{"$f":"Infrastructure!F23","v":0},{"$f":"Infrastructure!G23","v":0},{"$f":"Infrastructure!H23","v":0},{"$f":"Infrastructure!I23","v":0},{"$f":"Infrastructure!J23","v":0}]
["Infrastructure",2,72,"Facilities",2,null,371,2.4,0,"What other controlled environment facilities are available?",{"$f":"Infrastructure!E24","v":0},{"$f":"Infrastructure!F24","v":0},{"$f":"Infrastructure!G24","v":0},{"$f":"Infrastructure!H24","v":0},{"$f":"Infrastructure!I24","v":0},{"$f":"Infrastructure!J24","v":0}]
["Infrastructure",2,72,"Facilities",2,null,372,2.5,0,"Total area of non-glasshouse controlled environment facilities (m2)?",{"$f":"Infrastructure!E25","v":0},{"$f":"Infrastructure!F25","v":0},{"$f":"Infrastructure!G25","v":0},{"$f":"Infrastructure!H25","v":0},{"$f":"Infrastructure!I25","v":0},{"$f":"Infrastructure!J25","v":0}]
["Infrastructure",2,72,"Facilities",2,null,373,2.6,0,"What proportion is used by breeding programs?",{"$f":"Infrastructure!E26","v":0},{"$f":"Infrastructure!F26","v":0},{"$f":"Infrastructure!G26","v":0},{"$f":"Infrastructure!H26","v":0},{"$f":"Infrastructure!I26","v":0},{"$f":"Infrastructure!J26","v":0}]
["Infrastructure",2,72,"Facilities",2,null,374,2.7,0,"How much laboratory space is available (m2)?",{"$f":"Infrastructure!E29","v":0},{"$f":"Infrastructure!F29","v":0},{"$f":"Infrastructure!G29","v":0},{"$f":"Infrastructure!H29","v":0},{"$f":"Infrastructure!I29","v":0},{"$f":"Infrastructure!J29","v":0}]
["Infrastructure",2,72,"Facilities",2,null,375,2.8,-1,"What proportion of laboratory space is used for:"]
["Infrastructure",2,72,"Facilities",2,null,376,"2.8.1",23,"Molecular markers?",{"$f":"Infrastructure!E31","v":0},{"$f":"Infrastructure!F31","v":0},{"$f":"Infrastructure!G31","v":0},{"$f":"Infrastructure!H31","v":0},{"$f":"Infrastructure!I31","v":0},{"$f":"Infrastructure!J31","v":0}]
["Infrastructure",2,72,"Facilities",2,null,377,"2.8.2",23,"Plant pathology?",{"$f":"Infrastructure!E32","v":0},{"$f":"Infrastructure!F32","v":0},{"$f":"Infrastructure!G32","v":0},{"$f":"Infrastructure!H32","v":0},{"$f":"Infrastructure!I32","v":0},{"$f":"Infrastructure!J32","v":0}]
["Infrastructure",2,72,"Facilities",2,null,378,"2.8.3",23,"Tissue culture/cell biology?",{"$f":"Infrastructure!E33","v":0},{"$f":"Infrastructure!F33","v":0},{"$f":"Infrastructure!G33","v":0},{"$f":"Infrastructure!H33","v":0},{"$f":"Infrastructure!I33","v":0},{"$f":"Infrastructure!J33","v":0}]
["Infrastructure",2,72,"Facilities",2,null,379,"2.8.4",23,"Product quality and nutrition?",{"$f":"Infrastructure!E34","v":0},{"$f":"Infrastructure!F34","v":0},{"$f":"Infrastructure!G34","v":0},{"$f":"Infrastructure!H34","v":0},{"$f":"Infrastructure!I34","v":0},{"$f":"Infrastructure!J34","v":0}]
["Infrastructure",2,72,"Facilities",2,null,380,"2.8.5",23,"Other? (please describe)",{"$f":"Infrastructure!E35","v":0},{"$f":"Infrastructure!F35","v":0},{"$f":"Infrastructure!G35","v":0},{"$f":"Infrastructure!H35","v":0},{"$f":"Infrastructure!I35","v":0},{"$f":"Infrastructure!J35","v":0}]
["Infrastructure",2,73,"All non-breeding locations",3,3.1,381,"3.1",-1,"Considering ALL OTHER Locations not listed above (those that are not conducting \"breeding\" activities but may be used for screening, trials or seed production), how many hectares are used for:"]
["Infrastructure",2,73,"All non-breeding locations",3,null,382,"3.1.1","29","Yield trials?",{"$f":"Infrastructure!E39","v":0},{"$f":"Infrastructure!F39","v":0},{"$f":"Infrastructure!G39","v":0},{"$f":"Infrastructure!H39","v":0},{"$f":"Infrastructure!I39","v":0},{"$f":"Infrastructure!J39","v":0}]
["Infrastructure",2,73,"All non-breeding locations",3,null,383,"3.1.2","29","Seed production?",{"$f":"Infrastructure!E40","v":0},{"$f":"Infrastructure!F40","v":0},{"$f":"Infrastructure!G40","v":0},{"$f":"Infrastructure!H40","v":0},{"$f":"Infrastructure!I40","v":0},{"$f":"Infrastructure!J40","v":0}]
["Infrastructure",2,73,"All non-breeding locations",3,null,384,"3.1.3","29","Other (please describe)",{"$f":"Infrastructure!E41","v":0},{"$f":"Infrastructure!F41","v":0},{"$f":"Infrastructure!G41","v":0},{"$f":"Infrastructure!H41","v":0},{"$f":"Infrastructure!I41","v":0},{"$f":"Infrastructure!J41","v":0}]
["Infrastructure",2,74,"Seed Production & storage",4,"4.1   to   4.6",385,"4.1",0,"Is there a dedicated area for seed production (drying, cleaning, processing) activities?",{"$f":"Infrastructure!E44","v":0}]
["Infrastructure",2,74,"Seed Production & storage",4,null,386,"4.2",0,"What is the total area (m2) available for seed production activities?",{"$f":"Infrastructure!E45","v":0}]
["Infrastructure",2,74,"Seed Production & storage",4,null,387,"4.3",0,"Does each breeder or breeding program have dedicated work space for seed activities? ",{"$f":"Infrastructure!E46","v":0}]
["Infrastructure",2,74,"Seed Production & storage",4,null,388,"4.4",0,"Does the institution have climate controlled facilities for seed storage?",{"$f":"Infrastructure!E47","v":0}]
["Infrastructure",2,74,"Seed Production & storage",4,null,389,"4.5",0,"Are there facilities specifically for long-term seed storage?",{"$f":"Infrastructure!E48","v":0}]
["Infrastructure",2,74,"Seed Production & storage",4,null,390,"4.6",0,"Would you describe the seed production and storage facilities as (choose one):",{"$f":"Infrastructure!E49","v":0}]
["Infrastructure",2,75,"State of Facilities",5,"5.1   to   5.7",391,"5.1",0,"Overall, would you describe the Institution's facilities as:",{"$f":"Infrastructure!E52","v":0}]
["Infrastructure",2,75,"State of Facilities",5,null,392,"5.2",0,"What facilities are in the greatest need of update (repair, improvement)?",{"$f":"Infrastructure!E53","v":0}]
["Infrastructure",2,75,"State of Facilities",5,null,393,"5.3",0,"What facilities are lacking that would be the highest priority to add if budget allowed?",{"$f":"Infrastructure!E54","v":0}]
["Infrastructure",2,75,"State of Facilities",5,null,394,5.4,0,"Does the institution have staff and budget dedicated to facility maintenance?",{"$f":"Infrastructure!E55","v":0}]
["Infrastructure",2,75,"State of Facilities",5,null,395,5.5,0,"What proportion of the institution's budget is spent on facility maintenance?",{"$f":"Infrastructure!E56","v":0}]
["Infrastructure",2,75,"State of Facilities",5,null,396,5.6,0,"Does the institution have staff and budget dedicated to equipment maintenance?",{"$f":"Infrastructure!E57","v":0}]
["Infrastructure",2,75,"State of Facilities",5,null,397,5.7,0,"What proportion of the institution's budget is spent on equipment maintenance?",{"$f":"Infrastructure!E58","v":0}]
["Infrastructure",2,76,"Additional Information",6,6.1,398,"6.1",0,"If any of your answers on this topic need further explanation or context, please provide here",{"$f":"Infrastructure!E61","v":0}]
["Breeding Support & System",3,77,"Mechanisation",1,1.1000000000000001,399,1.1000000000000001,0,"What proportion of the institution's budget is spent on mechanization for plant breeding programs?",{"$f":"'Breeding Support'!E7","v":0}]
["Breeding Support & System",3,78,"Information Systems",2,"2.1   to   2.4",400,2.1,0,"Does the institution have a centralized computer-based informatics system for use by plant breeders and research staff?",{"$f":"'Breeding Support'!E10","v":0}]
["Breeding Support & System",3,78,"Information Systems",2,null,401,2.2000000000000002,-1,"What are the system's capabilities? (select all that apply)"]
["Breeding Support & System",3,78,"Information Systems",2,null,402,"2.2.1",49,"Track pedigrees",{"$f":"'Breeding Support'!E12","v":0}]
["Breeding Support & System",3,78,"Information Systems",2,null,403,"2.2.2",49,"Assign germplasm identification values",{"$f":"'Breeding Support'!E13","v":0}]
["Breeding Support & System",3,78,"Information Systems",2,null,404,"2.2.3",49,"Produce field books",{"$f":"'Breeding Support'!E14","v":0}]
["Breeding Support & System",3,78,"Information Systems",2,null,405,"2.2.4",49,"Produce tags and other documentation for planting",{"$f":"'Breeding Support'!E15","v":0}]
["Breeding Support & System",3,78,"Information Systems",2,null,406,"2.2.5",49,"Produce tags and other documentation for harvesting",{"$f":"'Breeding Support'!E16","v":0}]
["Breeding Support & System",3,78,"Information Systems",2,null,407,"2.2.6",49,"Produce tags and other documentation for seed storage",{"$f":"'Breeding Support'!E17","v":0}]
["Breeding Support & System",3,78,"Information Systems",2,null,408,"2.2.7",49,"Collect and store phenotypic data",{"$f":"'Breeding Support'!E18","v":0}]
["Breeding Support & System",3,78,"Information Systems",2,null,409,"2.2.8",49,"Collect and store genotypic data",{"$f":"'Breeding Support'!E19","v":0}]
["Breeding Support & System",3,78,"Information Systems",2,null,410,"2.2.9",49,"Collect and store yield trial data",{"$f":"'Breeding Support'!E20","v":0}]
["Breeding Support & System",3,78,"Information Systems",2,null,411,"2.2.10",49,"Data analysis",{"$f":"'Breeding Support'!E21","v":0}]
["Breeding Support & System",3,78,"Information Systems",2,null,412,"2.2.11",49,"Other",{"$f":"'Breeding Support'!E22","v":0}]
["Breeding Support & System",3,78,"Information Systems",2,null,413,2.2999999999999998,0,"How would you rate the integration of the above components within the system (i.e. ability for data entry to automatically flow through to other functions in a seamless manner)?",{"$f":"'Breeding Support'!E23","v":0}]
["Breeding Support & System",3,78,"Information Systems",2,null,414,2.4,0,"In general among the programs being assessed, approximately what proportion of data collected is captured on an electronic data logger?",{"$f":"'Breeding Support'!E24","v":0}]
["Breeding Support & System",3,79,"Access to Allied Disciplines",3,3.1,415,3.1,-1,"Do plant breeders have access to trained professionals in the following disciplines? (answer Y/N to each)"]
["Breeding Support & System",3,79,"Access to Allied Disciplines",3,null,416,"3.1.1",63,"Molecular Biology (working at sequencing level)",{"$f":"'Breeding Support'!E28","v":0}]
["Breeding Support & System",3,79,"Access to Allied Disciplines",3,null,417,"3.1.2",63,"Genetics & Molecular Genetics (working at the genome level)",{"$f":"'Breeding Support'!E29","v":0}]
["Breeding Support & System",3,79,"Access to Allied Disciplines",3,null,418,"3.1.3",63,"Cell Biology/ Tissue culture",{"$f":"'Breeding Support'!E30","v":0}]
["Breeding Support & System",3,79,"Access to Allied Disciplines",3,null,419,"3.1.4",63,"Agronomy",{"$f":"'Breeding Support'!E31","v":0}]
["Breeding Support & System",3,79,"Access to Allied Disciplines",3,null,420,"3.1.5",63,"Plant Pathology",{"$f":"'Breeding Support'!E32","v":0}]
["Breeding Support & System",3,79,"Access to Allied Disciplines",3,null,421,"3.1.6",63,"Entomology",{"$f":"'Breeding Support'!E33","v":0}]
["Breeding Support & System",3,79,"Access to Allied Disciplines",3,null,422,"3.1.7",63,"Physiology",{"$f":"'Breeding Support'!E34","v":0}]
["Breeding Support & System",3,79,"Access to Allied Disciplines",3,null,423,"3.1.8",63,"Quality (e.g., Grain Quality, Nutrition, etc.)",{"$f":"'Breeding Support'!E35","v":0}]
["Breeding Support & System",3,79,"Access to Allied Disciplines",3,null,424,"3.1.9",63,"Virology",{"$f":"'Breeding Support'!E36","v":0}]
["Breeding Support & System",3,79,"Access to Allied Disciplines",3,null,425,"3.1.10",63,"Information systems",{"$f":"'Breeding Support'!E37","v":0}]
["Breeding Support & System",3,79,"Access to Allied Disciplines",3,null,426,"3.1.11",63,"Biometrics and statistics",{"$f":"'Breeding Support'!E38","v":0}]
["Breeding Support & System",3,79,"Access to Allied Disciplines",3,null,427,"3.1.12",63,"Other (please specify)",{"$f":"'Breeding Support'!E39","v":0}]
["Breeding Support & System",3,80,"Extension & Seed Delivery",4,"4.1   to  4.4",428,4.0999999999999996,0,"Is the Institution responsible for operating an extension service that supports farmers?",{"$f":"'Breeding Support'!E42","v":0}]
["Breeding Support & System",3,80,"Extension & Seed Delivery",4,null,429,4.2,0,"If \"No,\" is there a national extension service outside the institution?",{"$f":"'Breeding Support'!E43","v":0}]
["Breeding Support & System",3,80,"Extension & Seed Delivery",4,null,430,4.3,0,"Is there a formal government system in place for delivering seed to farmers after release by the institution?",{"$f":"'Breeding Support'!E44","v":0}]
["Breeding Support & System",3,80,"Extension & Seed Delivery",4,null,431,4.4000000000000004,0,"Is \"Yes,\" please describe it briefly.  If \"No\", describe how/if private commercialization takes place",{"$f":"'Breeding Support'!E45","v":0}]
["Breeding Support & System",3,81,"Additional Information",5,5.0999999999999996,432,"5.1",0,"If any of your answers on this topic need further explanation or context, please provide here",{"$f":"'Breeding Support'!E48","v":0}]
["Pre –Breeding Research",4,82,"Pre-breeding Research",1,"1.1   to   1.9",433,1.1000000000000001,0,"Does the Institution conduct any pre-breeding research?",{"$f":"'Pre-Breeding Research'!E6","v":0}]
["Pre –Breeding Research",4,82,"Pre-breeding Research",1,null,434,"1.2",0,"If \"Yes,\" is there a dedicated pre-breeding team?",{"$f":"'Pre-Breeding Research'!E7","v":0}]
["Pre –Breeding Research",4,82,"Pre-breeding Research",1,null,435,"1.3",-1,"If \"Yes,\" in which areas is the Institution active?"]
["Pre –Breeding Research",4,82,"Pre-breeding Research",1,null,436,"1.3.1",83,"Trait mapping and marker development",{"$f":"'Pre-Breeding Research'!E9","v":0}]
["Pre –Breeding Research",4,82,"Pre-breeding Research",1,null,437,"1.3.2",83,"Gene discovery",{"$f":"'Pre-Breeding Research'!E10","v":0}]
["Pre –Breeding Research",4,82,"Pre-breeding Research",1,null,438,"1.3.3",83,"Plant Pathology",{"$f":"'Pre-Breeding Research'!E11","v":0}]
["Pre –Breeding Research",4,82,"Pre-breeding Research",1,null,439,"1.3.4",83,"Entomology",{"$f":"'Pre-Breeding Research'!E12","v":0}]
["Pre –Breeding Research",4,82,"Pre-breeding Research",1,null,440,"1.3.5",83,"Abiotic Stress",{"$f":"'Pre-Breeding Research'!E13","v":0}]
["Pre –Breeding Research",4,82,"Pre-breeding Research",1,null,441,"1.3.6",83,"Physiology",{"$f":"'Pre-Breeding Research'!E14","v":0}]
["Pre –Breeding Research",4,82,"Pre-breeding Research",1,null,442,"1.3.7",83,"Quality and Nutrition",{"$f":"'Pre-Breeding Research'!E15","v":0}]
["Pre –Breeding Research",4,82,"Pre-breeding Research",1,null,443,"1.3.8",83,"Other (Describe)",{"$f":"'Pre-Breeding Research'!E16","v":0}]
["Pre –Breeding Research",4,82,"Pre-breeding Research",1,null,444,"1.4",0,"How many Ph.D. scientists are engaged in pre-breeding research?",{"$f":"'Pre-Breeding Research'!E17","v":0}]
["Pre –Breeding Research",4,82,"Pre-breeding Research",1,null,445,"1.5",-1,"How many Ph.D. scientists are in each area of research?"]
["Pre –Breeding Research",4,82,"Pre-breeding Research",1,null,446,"1.5.1",93,"Trait mapping and marker development",{"$f":"'Pre-Breeding Research'!E19","v":0}]
["Pre –Breeding Research",4,82,"Pre-breeding Research",1,null,447,"1.5.2",93,"Gene discovery",{"$f":"'Pre-Breeding Research'!E20","v":0}]
["Pre –Breeding Research",4,82,"Pre-breeding Research",1,null,448,"1.5.3",93,"Plant Pathology",{"$f":"'Pre-Breeding Research'!E21","v":0}]
["Pre –Breeding Research",4,82,"Pre-breeding Research",1,null,449,"1.5.4",93,"Entomology",{"$f":"'Pre-Breeding Research'!E22","v":0}]
["Pre –Breeding Research",4,82,"Pre-breeding Research",1,null,450,"1.5.5",93,"Abiotic Stress",{"$f":"'Pre-Breeding Research'!E23","v":0}]
["Pre –Breeding Research",4,82,"Pre-breeding Research",1,null,451,"1.5.6",93,"Physiology",{"$f":"'Pre-Breeding Research'!E24","v":0}]
["Pre –Breeding Research",4,82,"Pre-breeding Research",1,null,452,"1.5.7",93,"Quality and Nutrition",{"$f":"'Pre-Breeding Research'!E25","v":0}]
["Pre –Breeding Research",4,82,"Pre-breeding Research",1,null,453,"1.5.8",93,"Other (please describe)",{"$f":"'Pre-Breeding Research'!E26","v":0}]
["Pre –Breeding Research",4,82,"Pre-breeding Research",1,null,454,"1.6",-1,"If pre-breeding research is conducted in abiotic stress, which stresses are targets?"]
["Pre –Breeding Research",4,82,"Pre-breeding Research",1,null,455,"1.6.1",102,"Drought",{"$f":"'Pre-Breeding Research'!E28","v":0}]
["Pre –Breeding Research",4,82,"Pre-breeding Research",1,null,456,"1.6.2",102,"Nitrogen/nutrient use efficiency",{"$f":"'Pre-Breeding Research'!E29","v":0}]
["Pre –Breeding Research",4,82,"Pre-breeding Research",1,null,457,"1.6.3",102,"Heat Tolerance",{"$f":"'Pre-Breeding Research'!E30","v":0}]
["Pre –Breeding Research",4,82,"Pre-breeding Research",1,null,458,"1.6.4",102,"Cold Tolerance",{"$f":"'Pre-Breeding Research'!E31","v":0}]
["Pre –Breeding Research",4,82,"Pre-breeding Research",1,null,459,"1.6.5",102,"Salinity",{"$f":"'Pre-Breeding Research'!E32","v":0}]
["Pre –Breeding Research",4,82,"Pre-breeding Research",1,null,460,"1.6.6",102,"Other (Describe)",{"$f":"'Pre-Breeding Research'!E33","v":0}]
["Pre –Breeding Research",4,82,"Pre-breeding Research",1,null,461,"1.7",-1,"What areas are the three highest priority research projects?"]
["Pre –Breeding Research",4,82,"Pre-breeding Research",1,null,462,"1.7.1",109,"Priority 1",{"$f":"'Pre-Breeding Research'!E35","v":0}]
["Pre –Breeding Research",4,82,"Pre-breeding Research",1,null,463,"1.7.2",109,"Priority 2",{"$f":"'Pre-Breeding Research'!E36","v":0}]
["Pre –Breeding Research",4,82,"Pre-breeding Research",1,null,464,"1.7.3",109,"Priority 3",{"$f":"'Pre-Breeding Research'!E37","v":0}]
["Pre –Breeding Research",4,82,"Pre-breeding Research",1,null,465,"1.8",0,"Which of the menu choices best describes the impact of the Institution's pre-breeding research on breeding and variety development?",{"$f":"'Pre-Breeding Research'!E38","v":0}]
["Pre –Breeding Research",4,82,"Pre-breeding Research",1,null,466,"1.9",0,"If any of your answers on this topic need further explanation or context, please provide here",{"$f":"'Pre-Breeding Research'!E39","v":0}]
["Strategic Planning & Management",5,83,"Topic1",1,1.1000000000000001,467,"1.1",0,"Please define the strategic vision and mission of your organization",{"$f":"'Strategic Planning'!E6","v":0}]
["Strategic Planning & Management",5,84,"Topic2",2,"2.1   to   2.2",468,2.1,0,"What proportion of your institution's overall effort is dedicated to plant breeding and breeding related research?",{"$f":"'Strategic Planning'!E8","v":0}]
["Strategic Planning & Management",5,84,"Topic2",2,null,469,2.2000000000000002,-1,"Within that total of plant breeding and breeding related research, what proportion is dedicated to the following (total should equal 100%):"]
["Strategic Planning & Management",5,84,"Topic2",2,null,470,"2.2.1",117,"Plant breeding?",{"$f":"'Strategic Planning'!E10","v":0}]
["Strategic Planning & Management",5,84,"Topic2",2,null,471,"2.2.2",117,"Research?",{"$f":"'Strategic Planning'!E11","v":0}]
["Strategic Planning & Management",5,85,"Topic3",3,"3.1   to   3.3",472,3.1,0,"Does your organization conduct and/or update strategic planning on a regular basis (every 3-5 years)?",{"$f":"'Strategic Planning'!E14","v":0}]
["Strategic Planning & Management",5,85,"Topic3",3,null,473,3.2,0,"If \"Yes,\" briefly describe who is involved in this effort and the process used.",{"$f":"'Strategic Planning'!E15","v":0}]
["Strategic Planning & Management",5,85,"Topic3",3,null,474,"3.3",0,"Please provide your most recent strategic plan as attachment.",{"$f":"'Strategic Planning'!E16","v":0}]
["Strategic Planning & Management",5,86,"Topic4",4,"4.1   to   4.1",475,4.0999999999999996,0,"Are your breeders and scientists organized into crop or program teams that meet regularly across disciplines with a designated, accountable leader?",{"$f":"'Strategic Planning'!E18","v":0}]
["Strategic Planning & Management",5,87,"Topic5",5,"5.1   to   5.2",476,5.0999999999999996,0,"Does the institution have a market research team?",{"$f":"'Strategic Planning'!E20","v":0}]
["Strategic Planning & Management",5,87,"Topic5",5,null,477,"5.2",-1,"If \"Yes,\" does the team review/perform the following?"]
["Strategic Planning & Management",5,87,"Topic5",5,null,478,"5.2.1",126,"Short-term (3-5 years) agronomic/climate trends",{"$f":"'Strategic Planning'!E22","v":0}]
["Strategic Planning & Management",5,87,"Topic5",5,null,479,"5.2.2",126,"Long-term (10+ years) agronomic/climate trends",{"$f":"'Strategic Planning'!E23","v":0}]
["Strategic Planning & Management",5,87,"Topic5",5,null,480,"5.2.3",126,"Country value chain trends",{"$f":"'Strategic Planning'!E24","v":0}]
["Strategic Planning & Management",5,87,"Topic5",5,null,481,"5.2.4",126,"Consumer trends",{"$f":"'Strategic Planning'!E25","v":0}]
["Strategic Planning & Management",5,87,"Topic5",5,null,482,"5.2.5",126,"Adoption surveys",{"$f":"'Strategic Planning'!E26","v":0}]
["Strategic Planning & Management",5,87,"Topic5",5,null,483,"5.2.6",126,"Other (please describe)",{"$f":"'Strategic Planning'!E27","v":0}]
["Strategic Planning & Management",5,88,"Topic6",6,"6.1   to   6.2",484,"6.1",0,"Does the organization have written staff career succession plans in place?",{"$f":"'Strategic Planning'!E29","v":0}]
["Strategic Planning & Management",5,88,"Topic6",6,null,485,"6.2",0,"If \"Yes,\" please describe",{"$f":"'Strategic Planning'!E30","v":0}]
["Strategic Planning & Management",5,89,"Topic7",7,"7.1   to   7.2",486,"7.1",0,"Please provide any documents that would be helpful to orient the assessment team (annual report, organizational charts, strategic plans)",{"$f":"'Strategic Planning'!E32","v":0}]
["Strategic Planning & Management",5,89,"Topic7",7,null,487,"7.2",0,"If any of your answers on this topic need further explanation or context, please provide here",{"$f":"'Strategic Planning'!E33","v":0}]
["Budget Management",6,90,"Budget practices",1,"1.1   to   1.10",488,1.1000000000000001,0,"Who has primary responsibility for establishing program budgets?",{"$f":"'Budget Mngmt'!E7","v":0}]
["Budget Management",6,90,"Budget practices",1,null,489,"1.1.1",136,"If \"Other,\" please describe",{"$f":"'Budget Mngmt'!E8","v":0}]
["Budget Management",6,90,"Budget practices",1,null,490,1.2,0,"If project leaders do not establish budgets, how much influence do they have in the process?",{"$f":"'Budget Mngmt'!E9","v":0}]
["Budget Management",6,90,"Budget practices",1,null,491,1.3,0,"Are project leaders held accountable for budget management?",{"$f":"'Budget Mngmt'!E10","v":0}]
["Budget Management",6,90,"Budget practices",1,null,492,1.4,0,"Do project leaders have access to budget data?",{"$f":"'Budget Mngmt'!E11","v":0}]
["Budget Management",6,90,"Budget practices",1,null,493,1.5,0,"How frequently do project leaders review budgets?",{"$f":"'Budget Mngmt'!E12","v":0}]
["Budget Management",6,90,"Budget practices",1,null,494,1.6,0,"Are activity based costs allocated to breeding programs?",{"$f":"'Budget Mngmt'!E13","v":0}]
["Budget Management",6,90,"Budget practices",1,null,495,1.7,0,"Are cost metrics tracked institution wide?",{"$f":"'Budget Mngmt'!E14","v":0}]
["Budget Management",6,90,"Budget practices",1,null,496,1.8,0,"Are cost metrics used to improve efficiency?",{"$f":"'Budget Mngmt'!E15","v":0}]
["Budget Management",6,90,"Budget practices",1,null,497,1.9,0,"Have the breeders and project leaders received formal training on financial budgeting and management? ",{"$f":"'Budget Mngmt'!E16","v":0}]
["Budget Management",6,90,"Budget practices",1,null,498,"1.10",0,"Does the institution have written and updated capital equipment replacement strategies?",{"$f":"'Budget Mngmt'!E17","v":0}]
["Budget Management",6,91,"Budget sources & use",2,"2.1   to   2.9",499,"2.1",0,"For the programs being assessed, what is the annual budget (indicate currency)?",{"$f":"'Budget Mngmt'!E21","v":0}]
["Budget Management",6,91,"Budget sources & use",2,null,500,"2.2",0,"Over the past 5 years have the programs' total budget increased, decreased or remained the same?",{"$f":"'Budget Mngmt'!E22","v":0}]
["Budget Management",6,91,"Budget sources & use",2,null,501,"2.3",0,"What is the percentage growth or decline over past 5 years (yr. 1 vs. yr. 5)?",{"$f":"'Budget Mngmt'!E23","v":0}]
["Budget Management",6,91,"Budget sources & use",2,null,502,"2.4",-1,"What proportion of the budget is spent on (total should add to 100%):"]
["Budget Management",6,91,"Budget sources & use",2,null,503,"2.4.1",150,"Salaries",{"$f":"'Budget Mngmt'!E25","v":0}]
["Budget Management",6,91,"Budget sources & use",2,null,504,"2.4.2",150,"Breeding Operations",{"$f":"'Budget Mngmt'!E26","v":0}]
["Budget Management",6,91,"Budget sources & use",2,null,505,"2.4.3",150,"Testing Program",{"$f":"'Budget Mngmt'!E27","v":0}]
["Budget Management",6,91,"Budget sources & use",2,null,506,"2.5",0,"What proportion of total budget is from National  Government?",{"$f":"'Budget Mngmt'!E29","v":0}]
["Budget Management",6,91,"Budget sources & use",2,null,507,"2.6",0,"What proportion of the budget is from project based funding?",{"$f":"'Budget Mngmt'!E30","v":0}]
["Budget Management",6,91,"Budget sources & use",2,null,508,"2.7",0,"Where else does funding come from?",{"$f":"'Budget Mngmt'!E31","v":0}]
["Budget Management",6,91,"Budget sources & use",2,null,509,"2.8",0,"What proportion of budget from National Government is spent on salaries?",{"$f":"'Budget Mngmt'!E32","v":0}]
["Budget Management",6,91,"Budget sources & use",2,null,510,"2.9",0,"Is there an allocation within the budget for infrastructure support/ maintenance?",{"$f":"'Budget Mngmt'!E33","v":0}]
["Budget Management",6,92,"Additional users",3,3.1,511,"3.1",0,"If any of your answers on this topic need further explanation or context, please provide here",{"$f":"'Budget Mngmt'!E36","v":0}]
["Performance Management",7,93,"Performance Evaluation",1,"1.1   to   1.3",512,1.1000000000000001,0,"How frequently do scientific staff receive performance reviews?",{"$f":"'Performance Mngmt'!E7","v":0}]
["Performance Management",7,93,"Performance Evaluation",1,null,513,1.2,-1,"What criteria are included in the performance evaluation review? (select all that apply)"]
["Performance Management",7,93,"Performance Evaluation",1,null,514,"1.2.1",161,"Academic contribution (i.e. published papers/articles)",{"$f":"'Performance Mngmt'!E9","v":0}]
["Performance Management",7,93,"Performance Evaluation",1,null,515,"1.2.2",161,"Research practices (e.g. field plot technique, selection methodology)",{"$f":"'Performance Mngmt'!E10","v":0}]
["Performance Management",7,93,"Performance Evaluation",1,null,516,"1.2.3",161,"Research outcomes (e.g. varieties released)",{"$f":"'Performance Mngmt'!E11","v":0}]
["Performance Management",7,93,"Performance Evaluation",1,null,517,"1.2.4",161,"Programmatic impact (e.g. variety adoption levels)",{"$f":"'Performance Mngmt'!E12","v":0}]
["Performance Management",7,93,"Performance Evaluation",1,null,518,"1.2.5",161,"Teamwork/collaboration",{"$f":"'Performance Mngmt'!E13","v":0}]
["Performance Management",7,93,"Performance Evaluation",1,null,519,"1.2.6",161,"Meeting financial (budget) targets",{"$f":"'Performance Mngmt'!E14","v":0}]
["Performance Management",7,93,"Performance Evaluation",1,null,520,"1.2.7",161,"Administrative effectiveness",{"$f":"'Performance Mngmt'!E15","v":0}]
["Performance Management",7,93,"Performance Evaluation",1,null,521,"1.2.8",161,"Other (please describe)",{"$f":"'Performance Mngmt'!E16","v":0}]
["Performance Management",7,93,"Performance Evaluation",1,null,522,1.3,-1,"What criteria are included in the job promotion process? (select all that apply)"]
["Performance Management",7,93,"Performance Evaluation",1,null,523,"1.3.1",170,"Academic contribution (i.e. published papers/articles)",{"$f":"'Performance Mngmt'!E18","v":0}]
["Performance Management",7,93,"Performance Evaluation",1,null,524,"1.3.2",170,"Research practices (e.g. field plot technique, selection methodology)",{"$f":"'Performance Mngmt'!E19","v":0}]
["Performance Management",7,93,"Performance Evaluation",1,null,525,"1.3.3",170,"Research outcomes (e.g. varieties released)",{"$f":"'Performance Mngmt'!E20","v":0}]
["Performance Management",7,93,"Performance Evaluation",1,null,526,"1.3.4",170,"Programmatic impact (e.g. variety adoption levels)",{"$f":"'Performance Mngmt'!E21","v":0}]
["Performance Management",7,93,"Performance Evaluation",1,null,527,"1.3.5",170,"Teamwork/collaboration",{"$f":"'Performance Mngmt'!E22","v":0}]
["Performance Management",7,93,"Performance Evaluation",1,null,528,"1.3.6",170,"Administrative effectiveness",{"$f":"'Performance Mngmt'!E23","v":0}]
["Performance Management",7,93,"Performance Evaluation",1,null,529,"1.3.7",170,"Other (please describe)",{"$f":"'Performance Mngmt'!E24","v":0}]
["Performance Management",7,94,"Incentives",2,2.1,530,2.1,-1,"What incentives are made available to scientific staff? (select all that apply)"]
["Performance Management",7,94,"Incentives",2,null,531,"2.1.1",178,"Staff do not receive incentives",{"$f":"'Performance Mngmt'!E28","v":0}]
["Performance Management",7,94,"Incentives",2,null,532,"2.1.2",178,"Financial incentives (i.e. compensation)",{"$f":"'Performance Mngmt'!E29","v":0}]
["Performance Management",7,94,"Incentives",2,null,533,"2.1.3",178,"Research benefits (e.g. greater funding)",{"$f":"'Performance Mngmt'!E30","v":0}]
["Performance Management",7,94,"Incentives",2,null,534,"2.1.4",178,"Individual outcome awards (e.g. recognition for varieties released)",{"$f":"'Performance Mngmt'!E31","v":0}]
["Performance Management",7,94,"Incentives",2,null,535,"2.1.5",178,"Team outcome awards (e.g. recognition for varieties released)",{"$f":"'Performance Mngmt'!E32","v":0}]
["Performance Management",7,94,"Incentives",2,null,536,"2.1.6",178,"Other (please describe)",{"$f":"'Performance Mngmt'!E33","v":0}]
["Performance Management",7,95,"Additional Information",3,3.1,537,"3.1",0,"If any of your answers on this topic need further explanation or context, please provide here",{"$f":"'Performance Mngmt'!E36","v":0}]

{"sheet":"MainMenu","index":2,"n_rows":23,"n_cols":7,"rows_kept":23,"cut":false,"hidden":false,"merged":[[10,6,11,6],[12,6,13,6],[20,6,21,6],[22,6,23,6],[14,6,15,6],[16,6,17,6],[18,6,19,6]]}
[]
[]
[]
[]
[]
[]
[]
[]
[]
[]
[null,null,null,null,null,null,{"$f":"CONCATENATE(COUNTA(Overview!E11,Overview!E13),\"/2\")","v":"0/2"}]
[]
[null,null,null,null,null,null,{"$f":"CONCATENATE(COUNTA(Infrastructure!G45,Infrastructure!E7,Infrastructure!E9,Infrastructure!E11:E13,Infrastructure!E15:E17,Infrastructure!E21:E25,Infrastructure!E26,Infrastructure!E29,Infrastructure!E31:E35,Infrastructure!E39:E41,Infrastructure!E44:E49,Infrastructure!E52:E58,Infrastructure!E61),\"/37\")","v":"0/37"}]
[]
[null,null,null,null,null,null,{"$f":"CONCATENATE(COUNTA('Breeding Support'!E7,'Breeding Support'!E10,'Breeding Support'!E12:E24,'Breeding Support'!E28:E39,'Breeding Support'!E42:E45,'Breeding Support'!E48),\"/32\")","v":"0/32"}]
[]
[null,null,null,null,null,null,{"$f":"CONCATENATE(COUNTA('Pre-Breeding Research'!E6:E7,'Pre-Breeding Research'!E9:E17,'Pre-Breeding Research'!E19:E26,'Pre-Breeding Research'!E28:E33,'Pre-Breeding Research'!E35:E39),\"/30\")","v":"0/30"}]
[]
[null,null,null,null,null,null,{"$f":"CONCATENATE(COUNTA('Strategic Planning'!E6,'Strategic Planning'!E8,'Strategic Planning'!E10:E11,'Strategic Planning'!E14:E15,'Strategic Planning'!E18,'Strategic Planning'!E20,'Strategic Planning'!E22:E27,'Strategic Planning'!E29,'Strategic Planning'!E30,'Strategic Planning'!E33),\"/17\")","v":"0/17"}]
[]
[null,null,null,null,null,null,{"$f":"CONCATENATE(COUNTA('Budget Mngmt'!E21:E23,'Budget Mngmt'!E25:E27,'Budget Mngmt'!E29:E33,'Budget Mngmt'!E36),\"/23\")","v":"0/23"}]
[]
[null,null,null,null,null,null,{"$f":"CONCATENATE(COUNTA('Performance Mngmt'!E7:E16,'Performance Mngmt'!E18:E24,'Performance Mngmt'!E28:E33,'Performance Mngmt'!E36),\"/24\")","v":"0/24"}]

{"sheet":"Overview","index":3,"n_rows":20,"n_cols":6,"rows_kept":20,"cut":false,"hidden":false,"merged":[[7,0,7,1]]}
[]
[null,null,null,null,"Please respond to the following questions in column E"]
[null,null,null,null,"Answer these questions for the entire institution."]
[]
[]
[]
[]
["Topic",null,"Question","Type of answer desired","Provide answers here.  Enlarge the cells to use as much space you need.  If a question is \"Not Applicable\" to your situation, please provide an explanation of why not applicable. "]
[]
[1,null,"Breeding Program(s) Overview"]
[null,"1.1","How many distinct breeding programs does the institution operate?"]
[null,"1.2","Name the individual crop or focus programs and each's \"Home\" location",null,"Name of program","Home location"]
[null,null,"Crop/Program 1","Descriptive"]
[null,null,"Crop/Program 2","Descriptive"]
[null,null,"Crop/Program 3","Descriptive"]
[null,null,"Crop/Program 4","Descriptive"]
[null,null,"Crop/Program 5","Descriptive"]
[null,null,"Crop/Program 6","Descriptive"]
[null,null,"Crop/Program 7","Descriptive"]
[null,null,"Crop/Program 8","Descriptive"]

{"sheet":"Infrastructure","index":4,"n_rows":61,"n_cols":12,"rows_kept":61,"cut":false,"hidden":false,"merged":[[3,0,3,1],[1,4,2,6]]}
[null,null,null,null,"Please respond to the following questions in column E"]
[null,null,null,null,"Answer these questions for only the programs being assessed.  If different crops at your institution are being assessed, you will need to complete this \"Infrastructure\" tab for each crop separately.  Please replicate this tab and indicate which crop/program for which you are responding."]
[]
["Topic",null,"Question","Type of answer desired","Provide answers here.  Enlarge the cells to use as much space you need.  If a question is \"Not Applicable\" to your situation, please provide an explanation of why not applicable. ","Only certain questions require answers in this column","Only certain questions require answers in this column","Only certain questions require answers in this column","Only certain questions require answers in this column","Only certain questions require answers in this column","Only certain questions require answers in this column","Only certain questions require answers in this column"]
[2,null,"Infrastructure"]
[null,"1","Field Operations"]
[null,1.1000000000000001,"How many locations does the Institution operate for this crop?","Number"]
[null,"1.2","Across the columns, name all locations for this crop where breeding activities take place. Please note \"breeding\" means developing own germplasm, not screening third party material.",null,"Insert location name here","Insert location name here","Insert location name here","Insert location name here","Insert location name here","Insert location name here","Insert location name here","Insert location name here"]
[null,"1.3","Are yield trials conducted at this location?","Menu"]
[null,"1.4","At each location, how many hectares are used for:"]
[null,null,"Breeding nurseries, including biotic and abiotic screening?","Number"]
[null,null,"Yield trials?","Number"]
[null,null,"Seed production?","Number"]
[null,"1.5","At each location, is permanent irrigation available for:"]
[null,null,"Breeding nurseries, including biotic and abiotic screening?","Menu"]
[null,null,"Yield trials?","Menu"]
[null,null,"Seed production?","Menu"]
[]
[null,2,"Facilities"]
[null,null,"Controlled Environment Facilities"]
[null,2.1,"Are glasshouse facilities available?","Menu"]
[null,2.2000000000000002,"What is the total area (m2) of glasshouse?","Number"]
[null,2.2999999999999998,"What proportion is used by breeding programs?","Percentage"]
[null,2.4,"What other controlled environment facilities are available?","Descriptive"]
[null,2.5,"Total area of non-glasshouse controlled environment facilities (m2)?","Number"]
[null,2.6,"What proportion is used by breeding programs?","Percentage"]
[]
[null,null,"Laboratory Facilities"]
[null,2.7,"How much laboratory space is available (m2)?","Number"]
[null,2.8,"What proportion of laboratory space is used for:"]
[null,null,"Molecular markers?","Percentage"]
[null,null,"Plant pathology?","Percentage"]
[null,null,"Tissue culture/cell biology?","Percentage"]
[null,null,"Product quality and nutrition?","Percentage"]
[null,null,"Other? (please describe)","Percentage"]
[]
[null,"3","All non-breeding locations"]
[null,"3.1","Considering ALL OTHER Locations not listed above (those that are not conducting \"breeding\" activities but may be used for screening, trials or seed production), how many hectares are used for:"]
[null,null,"Yield trials?","Number"]
[null,null,"Seed production?","Number"]
[null,null,"Other (please describe)","Number"]
[]
[null,"4","Seed production and storage"]
[null,"4.1","Is there a dedicated area for seed production (drying, cleaning, processing) activities?","Menu"]
[null,"4.2","What is the total area (m2) available for seed production activities?","Number"]
[null,"4.3","Does each breeder or breeding program have dedicated work space for seed activities? ","Menu"]
[null,"4.4","Does the institution have climate controlled facilities for seed storage?","Menu"]
[null,"4.5","Are there facilities specifically for long-term seed storage?","Menu"]
[null,"4.6","Would you describe the seed production and storage facilities as (choose one):","Menu"]
[]
[null,"5","State of Facilities"]
[null,"5.1","Overall, would you describe the Institution's facilities as:","Menu"]
[null,"5.2","What facilities are in the greatest need of update (repair, improvement)?","Descriptive"]
[null,"5.3","What facilities are lacking that would be the highest priority to add if budget allowed?","Descriptive"]
[null,5.4,"Does the institution have staff and budget dedicated to facility maintenance?","Menu"]
[null,5.5,"What proportion of the institution's budget is spent on facility maintenance?","Percentage"]
[null,5.6,"Does the institution have staff and budget dedicated to equipment maintenance?","Menu"]
[null,5.7,"What proportion of the institution's budget is spent on equipment maintenance?","Percentage"]
[]
[null,"6"]
[null,"6.1","If any of your answers on this topic need further explanation or context, please provide here","Descriptive"]

{"sheet":"Breeding Support","index":5,"n_rows":48,"n_cols":5,"rows_kept":48,"cut":false,"hidden":false,"merged":[[3,0,3,1],[1,4,2,5]]}
[null,null,null,null,"Please respond to the following questions in column E"]
[null,null,null,null,"Answer these questions in aggregate for the crops/programs being assessed, unless significant variances require separate answers for different crops."]
[]
["Topic",null,"Question","Type of answer desired","Provide answers here.  Enlarge the cells to use as much space you need.  If a question is \"Not Applicable\" to your situation, please provide an explanation of why not applicable. "]
[3,null,"Breeding Support Systems"]
[null,"1","Mechanization"]
[null,1.1000000000000001,"What proportion of the institution's budget is spent on mechanization for plant breeding programs?","Percentage"]
[]
[null,"2","Information Systems"]
[null,2.1,"Does the institution have a centralized computer-based informatics system for use by plant breeders and research staff?","Menu"]
[null,2.2000000000000002,"What are the system's capabilities? (select all that apply)"]
[null,null,"Track pedigrees","Menu"]
[null,null,"Assign germplasm identification values","Menu"]
[null,null,"Produce field books","Menu"]
[null,null,"Produce tags and other documentation for planting","Menu"]
[null,null,"Produce tags and other documentation for harvesting","Menu"]
[null,null,"Produce tags and other documentation for seed storage","Menu"]
[null,null,"Collect and store phenotypic data","Menu"]
[null,null,"Collect and store genotypic data","Menu"]
[null,null,"Collect and store yield trial data","Menu"]
[null,null,"Data analysis","Menu"]
[null,null,"Other","Descriptive"]
[null,2.2999999999999998,"How would you rate the integration of the above components within the system (i.e. ability for data entry to automatically flow through to other functions in a seamless manner)?","Menu"]
[null,2.4,"In general among the programs being assessed, approximately what proportion of data collected is captured on an electronic data logger?","Percentage"]
[]
[null,"3","Access to Allied Disciplines"]
[null,3.1,"Do plant breeders have access to trained professionals in the following disciplines? (answer Y/N to each)"]
[null,null,"Molecular Biology (working at sequencing level)","Menu"]
[null,null,"Genetics & Molecular Genetics (working at the genome level)","Menu"]
[null,null,"Cell Biology/ Tissue culture","Menu"]
[null,null,"Agronomy","Menu"]
[null,null,"Plant Pathology","Menu"]
[null,null,"Entomology","Menu"]
[null,null,"Physiology","Menu"]
[null,null,"Quality (e.g., Grain Quality, Nutrition, etc.)","Menu"]
[null,null,"Virology","Menu"]
[null,null,"Information systems","Menu"]
[null,null,"Biometrics and statistics","Menu"]
[null,null,"Other (please specify)","Descriptive"]
[]
[null,"4","Extension and Seed Delivery"]
[null,4.0999999999999996,"Is the Institution responsible for operating an extension service that supports farmers?","Menu"]
[null,4.2,"If \"No,\" is there a national extension service outside the institution?","Menu"]
[null,4.3,"Is there a formal government system in place for delivering seed to farmers after release by the institution?","Menu"]
[null,4.4000000000000004,"Is \"Yes,\" please describe it briefly.  If \"No\", describe how/if private commercialization takes place","Descriptive"]
[]
[null,5]
[null,"5.1","If any of your answers on this topic need further explanation or context, please provide here","Descriptive"]

{"sheet":"Pre-Breeding Research","index":6,"n_rows":39,"n_cols":5,"rows_kept":39,"cut":false,"hidden":false,"merged":[[3,0,3,1],[1,4,1,5]]}
[null,null,null,null,"Please respond to the following questions in column E"]
[null,null,null,null,"Answer these questions in aggregate for the crops/programs being assessed, unless significant variances require separate answers for different crops."]
[]
["Topic",null,"Question","Type of answer desired","Provide answers here.  Enlarge the cells to use as much space you need.  If a question is \"Not Applicable\" to your situation, please provide an explanation of why not applicable. "]
[null,null,"Pre-Breeding Research"]
[1,1.1000000000000001,"Does the Institution conduct any pre-breeding research?","Menu"]
[null,"1.2","If \"Yes,\" is there a dedicated pre-breeding team?","Menu"]
[null,"1.3","If \"Yes,\" in which areas is the Institution active?"]
[null,null,"Trait mapping and marker development","Menu"]
[null,null,"Gene discovery","Menu"]
[null,null,"Plant Pathology","Menu"]
[null,null,"Entomology","Menu"]
[null,null,"Abiotic Stress","Menu"]
[null,null,"Physiology","Menu"]
[null,null,"Quality and Nutrition","Menu"]
[null,null,"Other (Describe)","Descriptive"]
[null,"1.4","How many Ph.D. scientists are engaged in pre-breeding research?","Number"]
[null,"1.5","How many Ph.D. scientists are in each area of research?"]
[null,null,"Trait mapping and marker development","Number"]
[null,null,"Gene discovery","Number"]
[null,null,"Plant Pathology","Number"]
[null,null,"Entomology","Number"]
[null,null,"Abiotic Stress","Number"]
[null,null,"Physiology","Number"]
[null,null,"Quality and Nutrition","Number"]
[null,null,"Other (please describe)","Descriptive"]
[null,"1.6","If pre-breeding research is conducted in abiotic stress, which stresses are targets?"]
[null,null,"Drought","Menu"]
[null,null,"Nitrogen/nutrient use efficiency","Menu"]
[null,null,"Heat Tolerance","Menu"]
[null,null,"Cold Tolerance","Menu"]
[null,null,"Salinity","Menu"]
[null,null,"Other (Describe)","Menu"]
[null,"1.7","What areas are the three highest priority research projects?"]
[null,null,"Priority 1","Descriptive"]
[null,null,"Priority 2","Descriptive"]
[null,null,"Priority 3","Descriptive"]
[null,"1.8","Which of the menu choices best describes the impact of the Institution's pre-breeding research on breeding and variety development?","Menu"]
[null,"1.9","If any of your answers on this topic need further explanation or context, please provide here","Descriptive"]

{"sheet":"Strategic Planning","index":7,"n_rows":33,"n_cols":5,"rows_kept":33,"cut":false,"hidden":false,"merged":[[1,4,1,5],[3,0,3,1]]}
[null,null,null,null,"Please respond to the following questions in column E"]
[null,null,null,null,"Answer these questions for the entire institution."]
[]
["Topic",null,"Question","Type of answer desired","Provide answers here.  Enlarge the cells to use as much space you need.  If a question is \"Not Applicable\" to your situation, please provide an explanation of why not applicable. "]
[null,null,"Strategic Planning and Management"]
[1,"1.1","Please define the strategic vision and mission of your organization","Descriptive"]
[]
[2,2.1,"What proportion of your institution's overall effort is dedicated to plant breeding and breeding related research?","Percentage"]
[null,2.2000000000000002,"Within that total of plant breeding and breeding related research, what proportion is dedicated to the following (total should equal 100%):"]
[null,null,"Plant breeding?","Percentage"]
[null,null,"Research?","Percentage"]
[]
[]
[3,3.1,"Does your organization conduct and/or update strategic planning on a regular basis (every 3-5 years)?","Menu"]
[null,3.2,"If \"Yes,\" briefly describe who is involved in this effort and the process used.","Descriptive"]
[null,"3.3","Please provide your most recent strategic plan as attachment.","Send as attachment(s)"]
[]
[4,4.0999999999999996,"Are your breeders and scientists organized into crop or program teams that meet regularly across disciplines with a designated, accountable leader?","Menu"]
[]
[5,5.0999999999999996,"Does the institution have a market research team?","Menu"]
[null,"5.2","If \"Yes,\" does the team review/perform the following?"]
[null,null,"Short-term (3-5 years) agronomic/climate trends","Menu"]
[null,null,"Long-term (10+ years) agronomic/climate trends","Menu"]
[null,null,"Country value chain trends","Menu"]
[null,null,"Consumer trends","Menu"]
[null,null,"Adoption surveys","Menu"]
[null,null,"Other (please describe)","Descriptive"]
[]
[6,"6.1","Does the organization have written staff career succession plans in place?","Menu"]
[null,"6.2","If \"Yes,\" please describe","Descriptive"]
[]
[7,"7.1","Please provide any documents that would be helpful to orient the assessment team (annual report, organizational charts, strategic plans)","Send as attachment(s)"]
[null,"7.2","If any of your answers on this topic need further explanation or context, please provide here","Descriptive"]

{"sheet":"Budget Mngmt","index":8,"n_rows":36,"n_cols":5,"rows_kept":36,"cut":false,"hidden":false,"merged":[[1,4,1,5],[3,0,3,1]]}
[null,null,null,null,"Please respond to the following questions in column E"]
[null,null,null,null,"Answer these questions for the entire institution."]
[]
["Topic",null,"Question","Type of answer desired","Provide answers here.  Enlarge the cells to use as much space you need.  If a question is \"Not Applicable\" to your situation, please provide an explanation of why not applicable. "]
[6,null,"Budget Management"]
[null,"1","Budget practices"]
[null,1.1000000000000001,"Who has primary responsibility for establishing program budgets?","Menu"]
[null,null,"If \"Other,\" please describe","Descriptive"]
[null,1.2,"If project leaders do not establish budgets, how much influence do they have in the process?","Menu"]
[null,1.3,"Are project leaders held accountable for budget management?","Menu"]
[null,1.4,"Do project leaders have access to budget data?","Menu"]
[null,1.5,"How frequently do project leaders review budgets?","Descriptive"]
[null,1.6,"Are activity based costs allocated to breeding programs?","Menu"]
[null,1.7,"Are cost metrics tracked institution wide?","Menu"]
[null,1.8,"Are cost metrics used to improve efficiency?","Menu"]
[null,1.9,"Have the breeders and project leaders received formal training on financial budgeting and management? ","Menu"]
[null,"1.10","Does the institution have written and updated capital equipment replacement strategies?","Menu"]
[]
[]
[null,"2","Budget sources and use (answer for the programs being assessed)"]
[null,"2.1","For the programs being assessed, what is the annual budget (indicate currency)?","Number"]
[null,"2.2","Over the past 5 years have the programs' total budget increased, decreased or remained the same?","Menu"]
[null,"2.3","What is the percentage growth or decline over past 5 years (yr. 1 vs. yr. 5)?","Percentage"]
[null,"2.4","What proportion of the budget is spent on (total should add to 100%):"]
[null,null,"Salaries","Percentage"]
[null,null,"Breeding Operations","Percentage"]
[null,null,"Testing Program","Percentage"]
[null,null,"Check that total = 100%",null,{"$f":"IF(SUM(E25:E27)=1,\"Your answer totals 100% as requested\",\"Your answer does not total 100% as requested.  Please revise.\")","v":"Your answer does not total 100% as requested.  Please revise."}]
[null,"2.5","What proportion of total budget is from National  Government?","Percentage"]
[null,"2.6","What proportion of the budget is from project based funding?","Percentage"]
[null,"2.7","Where else does funding come from?","Descriptive"]
[null,"2.8","What proportion of budget from National Government is spent on salaries?","Percentage"]
[null,"2.9","Is there an allocation within the budget for infrastructure support/ maintenance?","Menu"]
[]
[null,"3"]
[null,"3.1","If any of your answers on this topic need further explanation or context, please provide here","Descriptive"]

{"sheet":"Performance Mngmt","index":9,"n_rows":36,"n_cols":5,"rows_kept":36,"cut":false,"hidden":false,"merged":[[1,4,1,5],[3,0,3,1]]}
[null,null,null,null,"Please respond to the following questions in column E"]
[null,null,null,null,"Answer these questions for the entire institution."]
[]
["Topic",null,"Question","Type of answer desired","Provide answers here.  Enlarge the cells to use as much space you need.  If a question is \"Not Applicable\" to your situation, please provide an explanation of why not applicable. "]
[null,7,"Performance Management"]
[null,1,"Performance evaluations"]
[null,1.1000000000000001,"How frequently do scientific staff receive performance reviews?","Menu"]
[null,1.2,"What criteria are included in the performance evaluation review? (select all that apply)","Menu"]
[null,null,"Academic contribution (i.e. published papers/articles)","Menu"]
[null,null,"Research practices (e.g. field plot technique, selection methodology)","Menu"]
[null,null,"Research outcomes (e.g. varieties released)","Menu"]
[null,null,"Programmatic impact (e.g. variety adoption levels)","Menu"]
[null,null,"Teamwork/collaboration","Menu"]
[null,null,"Meeting financial (budget) targets","Menu"]
[null,null,"Administrative effectiveness","Menu"]
[null,null,"Other (please describe)","Descriptive"]
[null,1.3,"What criteria are included in the job promotion process? (select all that apply)"]
[null,null,"Academic contribution (i.e. published papers/articles)","Menu"]
[null,null,"Research practices (e.g. field plot technique, selection methodology)","Menu"]
[null,null,"Research outcomes (e.g. varieties released)","Menu"]
[null,null,"Programmatic impact (e.g. variety adoption levels)","Menu"]
[null,null,"Teamwork/collaboration","Menu"]
[null,null,"Administrative effectiveness","Menu"]
[null,null,"Other (please describe)","Descriptive"]
[]
[null,2,"Incentives"]
[null,2.1,"What incentives are made available to scientific staff? (select all that apply)"]
[null,null,"Staff do not receive incentives","Menu"]
[null,null,"Financial incentives (i.e. compensation)","Menu"]
[null,null,"Research benefits (e.g. greater funding)","Menu"]
[null,null,"Individual outcome awards (e.g. recognition for varieties released)","Menu"]
[null,null,"Team outcome awards (e.g. recognition for varieties released)","Menu"]
[null,null,"Other (please describe)","Descriptive"]
[]
[null,3]
[3,"3.1","If any of your answers on this topic need further explanation or context, please provide here","Descriptive"]

{"sheet":"Sheet 2","index":10,"n_rows":46,"n_cols":1,"rows_kept":46,"cut":false,"hidden":true,"merged":[]}
["No input needed on this sheet, but do not delete it."]
[]
[]
["Drop down menu text"]
[]
[]
["Yes"]
["No"]
["Some"]
[]
["Excellent"]
["Good"]
["Poor"]
["Unacceptable"]
[]
["Results have significantly increased breeding capabilities and outcomes"]
["Results have been important and contribute to breeding outcomes "]
["Results have not contributed significantly to breeding outcomes"]
["Results are just emerging and outcomes are unclear"]
["Results have not yet emerged"]
[]
["Project Leaders"]
["Department or Program Leads"]
["Institutional Leadership"]
["Other"]
[]
["A very high degree, just short of control "]
["Their input is considered"]
["No influence"]
[]
["Staff are not reviewed as part of performance process"]
["Every 0-6 months"]
["Every 6 months - 12 months"]
["Every 12 - 24 months"]
["Every 24 months +"]
[]
["Highly integrated"]
["Somewhat integrated"]
["Not very integrated"]
["Not at all integrated"]
[]
["Increased"]
["Decreased"]
["Stayed the same"]
[]
["Unlock password = Context"]